[Event "*** Titled Tuesday Blitz"]
[Site "Chess.com"]
[Date "2021.02.16"]
[Round "10"]
[White "Fandorine"]
[Black "Markov_Mikhail"]
[Result "1-0"]
[WhiteElo "2852"]
[BlackElo "2712"]
[TimeControl "180+1"]
[EndTime "12:00:07 PST"]
[Termination "Fandorine won by resignation"]

1. c4 {[%clk 0:03:00.9]} 1... Nf6 {[%clk 0:03:00.1]} 2. Nc3 {[%clk 0:03:00.9]}
2... c5 {[%clk 0:03:00.1]} 3. g3 {[%clk 0:02:59]} 3... e6 {[%clk 0:02:58.4]} 4.
Nf3 {[%clk 0:02:56.5]} 4... Be7 {[%clk 0:02:58.6]} 5. Bg2 {[%clk 0:02:56]} 5...
O-O {[%clk 0:02:59.3]} 6. O-O {[%clk 0:02:56.7]} 6... d5 {[%clk 0:02:54.8]} 7.
cxd5 {[%clk 0:02:55.8]} 7... exd5 {[%clk 0:02:54.7]} 8. d4 {[%clk 0:02:53.7]}
8... Nbd7 {[%clk 0:02:54.3]} 9. b3 {[%clk 0:02:52.1]} 9... b6 {[%clk 0:02:54.4]}
10. Bb2 {[%clk 0:02:50.5]} 10... Bb7 {[%clk 0:02:54.3]} 11. Rc1 {[%clk
0:02:49.6]} 11... Re8 {[%clk 0:02:53.9]} 12. Re1 {[%clk 0:02:40.1]} 12... a6
{[%clk 0:02:52.7]} 13. e3 {[%clk 0:02:38.8]} 13... Rc8 {[%clk 0:02:52.8]} 14.
Ne5 {[%clk 0:02:33.9]} 14... b5 {[%clk 0:02:09.4]} 15. Nxd7 {[%clk 0:02:19.8]}
15... Qxd7 {[%clk 0:02:10.3]} 16. dxc5 {[%clk 0:02:20.2]} 16... Bxc5 {[%clk
0:02:06]} 17. Ne2 {[%clk 0:02:20]} 17... Bb4 {[%clk 0:02:02]} 18. Bc3 {[%clk
0:01:35.4]} 18... Ba3 {[%clk 0:01:59.2]} 19. Rc2 {[%clk 0:01:32]} 19... Qf5
{[%clk 0:01:51.1]} 20. Nd4 {[%clk 0:01:27.2]} 20... Qd7 {[%clk 0:01:51.7]} 21.
Ree2 {[%clk 0:01:20.7]} 21... Ne4 {[%clk 0:01:50.9]} 22. Be1 {[%clk 0:01:20.4]}
22... Rxc2 {[%clk 0:01:46.7]} 23. Rxc2 {[%clk 0:01:20.3]} 23... Rc8 {[%clk
0:01:47.3]} 24. h3 {[%clk 0:01:11.7]} 24... g6 {[%clk 0:01:45.8]} 25. Ne2 {[%clk
0:01:05.3]} 25... Qf5 {[%clk 0:01:32.7]} 26. Rxc8+ {[%clk 0:01:02.2]} 26... Qxc8
{[%clk 0:01:31.7]} 27. Qd3 {[%clk 0:01:01.3]} 27... Bb2 {[%clk 0:01:26.9]} 28.
g4 {[%clk 0:00:53]} 28... Qc5 {[%clk 0:01:15.1]} 29. f3 {[%clk 0:00:46.7]} 29...
Nf6 {[%clk 0:01:09.2]} 30. Bc3 {[%clk 0:00:41.3]} 30... Bxc3 {[%clk 0:01:04.2]}
31. Qxc3 {[%clk 0:00:42.2]} 31... Qxc3 {[%clk 0:00:58.5]} 32. Nxc3 {[%clk
0:00:43.1]} 32... Kf8 {[%clk 0:00:58.4]} 33. g5 {[%clk 0:00:37.3]} 33... Nd7
{[%clk 0:00:55.2]} 34. f4 {[%clk 0:00:37.5]} 34... Nb6 {[%clk 0:00:55.1]} 35.
Ne2 {[%clk 0:00:35.4]} 35... Ke7 {[%clk 0:00:51.3]} 36. Nd4 {[%clk 0:00:34.1]}
36... Kd6 {[%clk 0:00:51]} 37. Kf2 {[%clk 0:00:28.7]} 37... Nd7 {[%clk
0:00:51.1]} 38. b4 {[%clk 0:00:25.1]} 38... Nb6 {[%clk 0:00:49.8]} 39. Bf1
{[%clk 0:00:22.4]} 39... Bc8 {[%clk 0:00:46.4]} 40. h4 {[%clk 0:00:21.6]} 40...
Na4 {[%clk 0:00:46.6]} 41. Bd3 {[%clk 0:00:20.4]} 41... Nc3 {[%clk 0:00:43.8]}
42. a3 {[%clk 0:00:20.6]} 42... Bg4 {[%clk 0:00:43.6]} 43. Ke1 {[%clk
0:00:20.9]} 43... Ne4 {[%clk 0:00:27.5]} 44. Nb3 {[%clk 0:00:17.8]} 44... Ng3
{[%clk 0:00:19.5]} 45. Nc5 {[%clk 0:00:16.8]} 45... Bc8 {[%clk 0:00:18.4]} 46.
Kf2 {[%clk 0:00:15.7]} 46... Nh5 {[%clk 0:00:16.3]} 47. Kf3 {[%clk 0:00:13.7]}
47... Ng7 {[%clk 0:00:15.9]} 48. e4 {[%clk 0:00:11]} 48... dxe4+ {[%clk
0:00:16.4]} 49. Kxe4 {[%clk 0:00:11.5]} 49... Ne6 {[%clk 0:00:13]} 50. Nxe6
{[%clk 0:00:10.6]} 50... Bxe6 {[%clk 0:00:12.6]} 51. Kd4 {[%clk 0:00:11.3]}
51... Bd7 {[%clk 0:00:10.9]} 52. Be4 {[%clk 0:00:11.5]} 52... Bc8 {[%clk
0:00:05.7]} 53. Bd5 {[%clk 0:00:11.9]} 53... Ke7 {[%clk 0:00:04.8]} 54. Ke5
{[%clk 0:00:12]} 54... Bd7 {[%clk 0:00:01.9]} 55. Bb7 {[%clk 0:00:11.9]} 1-0

[Event "*** Titled Tuesday Blitz"]
[Site "Chess.com"]
[Date "2021.02.16"]
[Round "10"]
[White "Alex-11211"]
[Black "MariaFominykh"]
[Result "1-0"]
[WhiteElo "2393"]
[BlackElo "2256"]
[TimeControl "180+1"]
[EndTime "12:00:09 PST"]
[Termination "Alex-11211 won on time"]

1. e4 {[%clk 0:03:00.9]} 1... d6 {[%clk 0:02:58.8]} 2. d4 {[%clk 0:03:00.4]}
2... Nf6 {[%clk 0:02:57.9]} 3. Nc3 {[%clk 0:03:00.9]} 3... e5 {[%clk 0:02:56.6]}
4. Nf3 {[%clk 0:03:00.7]} 4... Nbd7 {[%clk 0:02:55.3]} 5. Bc4 {[%clk 0:03:00.9]}
5... Be7 {[%clk 0:02:54.7]} 6. O-O {[%clk 0:02:59.7]} 6... O-O {[%clk
0:02:54.2]} 7. a4 {[%clk 0:02:59.9]} 7... c6 {[%clk 0:02:52]} 8. h3 {[%clk
0:02:51]} 8... a5 {[%clk 0:02:50]} 9. Re1 {[%clk 0:02:36.2]} 9... Nb6 {[%clk
0:02:48.4]} 10. Bb3 {[%clk 0:02:35.2]} 10... Nfd7 {[%clk 0:02:47.1]} 11. Be3
{[%clk 0:02:23.2]} 11... exd4 {[%clk 0:02:46.4]} 12. Nxd4 {[%clk 0:02:24.1]}
12... Nc5 {[%clk 0:02:45]} 13. Ba2 {[%clk 0:02:20.8]} 13... Bf6 {[%clk
0:02:16.4]} 14. e5 {[%clk 0:01:59.2]} 14... Bxe5 {[%clk 0:02:06.9]} 15. Nxc6
{[%clk 0:01:55.8]} 15... bxc6 {[%clk 0:01:55.8]} 16. Bxc5 {[%clk 0:01:54.7]}
16... Bxc3 {[%clk 0:01:19.9]} 17. Bxb6 {[%clk 0:01:52.8]} 17... Qxb6 {[%clk
0:01:20.8]} 18. bxc3 {[%clk 0:01:53.4]} 18... d5 {[%clk 0:01:17.5]} 19. Rb1
{[%clk 0:01:34.8]} 19... Qc5 {[%clk 0:01:15.5]} 20. Qd4 {[%clk 0:01:25]} 20...
Qa3 {[%clk 0:00:53.5]} 21. Bb3 {[%clk 0:01:18.1]} 21... Be6 {[%clk 0:00:52.9]}
22. Qb6 {[%clk 0:01:00.1]} 22... Rfc8 {[%clk 0:00:40]} 23. Re3 {[%clk 0:00:50]}
23... Qd6 {[%clk 0:00:37.6]} 24. Rbe1 {[%clk 0:00:48.2]} 24... Rcb8 {[%clk
0:00:25.7]} 25. Qd4 {[%clk 0:00:46.3]} 25... c5 {[%clk 0:00:25.9]} 26. Qd2
{[%clk 0:00:36.4]} 26... Qc6 {[%clk 0:00:20.6]} 27. Rxe6 {[%clk 0:00:31.7]}
27... fxe6 {[%clk 0:00:19.8]} 28. Rxe6 {[%clk 0:00:32.6]} 28... Qd7 {[%clk
0:00:14.7]} 29. Bxd5 {[%clk 0:00:18.3]} 29... Kh8 {[%clk 0:00:12.3]} 30. c4
{[%clk 0:00:16.6]} 30... Rd8 {[%clk 0:00:11]} 31. Qe3 {[%clk 0:00:16.3]} 31...
Rac8 {[%clk 0:00:10.4]} 32. Re7 {[%clk 0:00:15.8]} 32... Qf5 {[%clk 0:00:10.3]}
33. Qc3 {[%clk 0:00:12.8]} 33... Qf6 {[%clk 0:00:10.7]} 34. Qxf6 {[%clk
0:00:10.3]} 34... gxf6 {[%clk 0:00:11.6]} 35. Ra7 {[%clk 0:00:10.4]} 35... Re8
{[%clk 0:00:09.9]} 36. Rxa5 {[%clk 0:00:10.2]} 36... Re1+ {[%clk 0:00:09.9]} 37.
Kh2 {[%clk 0:00:09.7]} 37... Re2 {[%clk 0:00:10.5]} 38. Rb5 {[%clk 0:00:06.6]}
38... Rxc2 {[%clk 0:00:10.3]} 39. a5 {[%clk 0:00:07.5]} 39... Rxf2 {[%clk
0:00:10]} 40. Kg3 {[%clk 0:00:06.6]} 40... Ra2 {[%clk 0:00:10.4]} 41. Bb7 {[%clk
0:00:07]} 41... Rb8 {[%clk 0:00:10.1]} 42. a6 {[%clk 0:00:07.9]} 42... Rd8
{[%clk 0:00:09.6]} 43. Rxc5 {[%clk 0:00:07.7]} 43... Rd3+ {[%clk 0:00:07]} 44.
Kh2 {[%clk 0:00:06.7]} 44... Rdd2 {[%clk 0:00:06]} 45. Rc7 {[%clk 0:00:05.3]}
45... Rdb2 {[%clk 0:00:05.2]} 46. Bf3 {[%clk 0:00:05.5]} 46... Rxa6 {[%clk
0:00:02.9]} 47. c5 {[%clk 0:00:05.8]} 47... Rc2 {[%clk 0:00:02]} 48. c6 {[%clk
0:00:06.2]} 48... Rb6 {[%clk 0:00:02.2]} 49. Rd7 {[%clk 0:00:06.5]} 49... Kg8
{[%clk 0:00:01.5]} 50. c7 {[%clk 0:00:05.8]} 50... Rbc6 {[%clk 0:00:01.8]} 51.
Bxc6 {[%clk 0:00:04.9]} 51... Rxc6 {[%clk 0:00:02.7]} 52. Rd8+ {[%clk
0:00:05.6]} 52... Kf7 {[%clk 0:00:02.2]} 53. c8=Q {[%clk 0:00:06.5]} 53... Rxc8
{[%clk 0:00:01.5]} 54. Rxc8 {[%clk 0:00:07.4]} 54... Kg6 {[%clk 0:00:01.1]} 55.
Kg3 {[%clk 0:00:07.4]} 1-0

[Event "*** Titled Tuesday Blitz"]
[Site "Chess.com"]
[Date "2021.02.16"]
[Round "10"]
[White "noblerone"]
[Black "kamilianin235"]
[Result "1-0"]
[WhiteElo "2402"]
[BlackElo "2194"]
[TimeControl "180+1"]
[EndTime "12:00:10 PST"]
[Termination "noblerone won by checkmate"]

1. d4 {[%clk 0:03:00.9]} 1... d5 {[%clk 0:02:56.9]} 2. Nf3 {[%clk 0:03:01.1]}
2... Nf6 {[%clk 0:02:54.2]} 3. Bg5 {[%clk 0:03:01.1]} 3... Bf5 {[%clk
0:02:51.1]} 4. c3 {[%clk 0:02:53.9]} 4... c5 {[%clk 0:02:49.9]} 5. Qb3 {[%clk
0:02:53.3]} 5... Qb6 {[%clk 0:02:49.3]} 6. dxc5 {[%clk 0:02:52.5]} 6... Qxb3
{[%clk 0:02:47.3]} 7. axb3 {[%clk 0:02:53.4]} 7... e6 {[%clk 0:02:46.8]} 8. Bxf6
{[%clk 0:02:50.1]} 8... gxf6 {[%clk 0:02:45.6]} 9. b4 {[%clk 0:02:49.5]} 9...
Nd7 {[%clk 0:02:43.6]} 10. Nd4 {[%clk 0:02:45.5]} 10... Bg6 {[%clk 0:02:41.2]}
11. Nb5 {[%clk 0:02:40.6]} 11... Kd8 {[%clk 0:02:29.9]} 12. Nd2 {[%clk 0:02:27]}
12... a6 {[%clk 0:02:28.1]} 13. e3 {[%clk 0:02:23.6]} 13... Rc8 {[%clk
0:02:22.1]} 14. Nd4 {[%clk 0:02:14.1]} 14... Kc7 {[%clk 0:02:17.5]} 15. c6
{[%clk 0:02:07.8]} 15... bxc6 {[%clk 0:02:12.4]} 16. Rxa6 {[%clk 0:02:05.5]}
16... Kb7 {[%clk 0:02:07.9]} 17. Be2 {[%clk 0:01:51.9]} 17... Be7 {[%clk
0:01:48.1]} 18. O-O {[%clk 0:01:48.7]} 18... Nb8 {[%clk 0:01:33.8]} 19. Ra5
{[%clk 0:01:39.1]} 19... Bd8 {[%clk 0:01:26.4]} 20. Ra3 {[%clk 0:01:37]} 20...
Bb6 {[%clk 0:01:23.1]} 21. N2b3 {[%clk 0:01:30.6]} 21... e5 {[%clk 0:01:03.5]}
22. Nf3 {[%clk 0:01:26.6]} 22... Rhg8 {[%clk 0:01:02.4]} 23. Rfa1 {[%clk
0:01:17.4]} 23... Rc7 {[%clk 0:00:47.4]} 24. Nc5+ {[%clk 0:01:15.3]} 24... Bxc5
{[%clk 0:00:40.2]} 25. bxc5 {[%clk 0:01:14.8]} 25... Kc8 {[%clk 0:00:39.5]} 26.
Ra8 {[%clk 0:01:13]} 26... Kd7 {[%clk 0:00:37]} 27. b4 {[%clk 0:00:47.9]} 27...
Rd8 {[%clk 0:00:24.9]} 28. Nh4 {[%clk 0:00:43.7]} 28... Ke7 {[%clk 0:00:24]} 29.
Bg4 {[%clk 0:00:38.5]} 29... Nd7 {[%clk 0:00:21.7]} 30. R8a7 {[%clk 0:00:29.8]}
30... Rdc8 {[%clk 0:00:17.8]} 31. Nf5+ {[%clk 0:00:27.8]} 31... Bxf5 {[%clk
0:00:16.8]} 32. Bxf5 {[%clk 0:00:28.7]} 32... Nf8 {[%clk 0:00:13.9]} 33. h3
{[%clk 0:00:25.6]} 33... Ne6 {[%clk 0:00:11]} 34. Kh2 {[%clk 0:00:22.9]} 34...
h6 {[%clk 0:00:10.4]} 35. R1a6 {[%clk 0:00:20.5]} 35... Kd7 {[%clk 0:00:08.6]}
36. g4 {[%clk 0:00:17.9]} 36... Rxa7 {[%clk 0:00:05.3]} 37. Rxa7+ {[%clk
0:00:18]} 37... Rc7 {[%clk 0:00:05.5]} 38. Ra6 {[%clk 0:00:15]} 38... Rc8 {[%clk
0:00:04.1]} 39. Kg3 {[%clk 0:00:13.9]} 39... Rc7 {[%clk 0:00:02.2]} 40. Kh4
{[%clk 0:00:12.2]} 40... Rc8 {[%clk 0:00:02.3]} 41. Ra7+ {[%clk 0:00:12]} 41...
Rc7 {[%clk 0:00:01.8]} 42. Rxc7+ {[%clk 0:00:11.5]} 42... Kxc7 {[%clk
0:00:02.7]} 43. Bxe6 {[%clk 0:00:09.5]} 43... fxe6 {[%clk 0:00:02.1]} 44. Kh5
{[%clk 0:00:07.5]} 44... Kb7 {[%clk 0:00:02.4]} 45. Kxh6 {[%clk 0:00:06.7]}
45... Ka6 {[%clk 0:00:03]} 46. g5 {[%clk 0:00:06.3]} 46... Kb5 {[%clk
0:00:03.6]} 47. gxf6 {[%clk 0:00:06.5]} 47... Kc4 {[%clk 0:00:04]} 48. f7 {[%clk
0:00:07.4]} 48... Kxc3 {[%clk 0:00:04.4]} 49. f8=Q {[%clk 0:00:08]} 49... d4
{[%clk 0:00:05.3]} 50. exd4 {[%clk 0:00:08]} 50... exd4 {[%clk 0:00:06.2]} 51.
Qd6 {[%clk 0:00:08.7]} 51... d3 {[%clk 0:00:06.3]} 52. Qxc6 {[%clk 0:00:09.1]}
52... d2 {[%clk 0:00:06.6]} 53. Qd6 {[%clk 0:00:09.3]} 53... Kc2 {[%clk
0:00:06.9]} 54. c6 {[%clk 0:00:09.8]} 54... d1=Q {[%clk 0:00:06.9]} 55. Qxd1+
{[%clk 0:00:09.7]} 55... Kxd1 {[%clk 0:00:07.8]} 56. c7 {[%clk 0:00:10.6]} 56...
Ke2 {[%clk 0:00:08.7]} 57. c8=Q {[%clk 0:00:11.2]} 57... Kxf2 {[%clk 0:00:09.6]}
58. Qxe6 {[%clk 0:00:11.3]} 58... Kg2 {[%clk 0:00:10.5]} 59. Qg4+ {[%clk
0:00:11.4]} 59... Kh2 {[%clk 0:00:11.4]} 60. h4 {[%clk 0:00:11.5]} 60... Kh1
{[%clk 0:00:11.4]} 61. Kg5 {[%clk 0:00:12.2]} 61... Kh2 {[%clk 0:00:11.9]} 62.
h5 {[%clk 0:00:13.1]} 62... Kh1 {[%clk 0:00:12.8]} 63. h6 {[%clk 0:00:14]} 63...
Kh2 {[%clk 0:00:13.7]} 64. h7 {[%clk 0:00:14.9]} 64... Kh1 {[%clk 0:00:14.6]}
65. h8=Q# {[%clk 0:00:15.8]} 1-0

[Event "*** Titled Tuesday Blitz"]
[Site "Chess.com"]
[Date "2021.02.16"]
[Round "10"]
[White "Vuk2000"]
[Black "Nuvas"]
[Result "0-1"]
[WhiteElo "2651"]
[BlackElo "2500"]
[TimeControl "180+1"]
[EndTime "12:00:11 PST"]
[Termination "Nuvas won by resignation"]

1. d4 {[%clk 0:03:00.9]} 1... Nf6 {[%clk 0:02:58.8]} 2. Bg5 {[%clk 0:03:01.4]}
2... Ne4 {[%clk 0:02:57.3]} 3. Bf4 {[%clk 0:03:00.8]} 3... d5 {[%clk 0:02:56.8]}
4. e3 {[%clk 0:03:01.3]} 4... c5 {[%clk 0:02:56.9]} 5. Bd3 {[%clk 0:03:01]} 5...
Nc6 {[%clk 0:02:49]} 6. c3 {[%clk 0:03:00.1]} 6... cxd4 {[%clk 0:02:45.1]} 7.
exd4 {[%clk 0:02:59.7]} 7... Bf5 {[%clk 0:02:44.8]} 8. Qe2 {[%clk 0:02:51.1]}
8... e6 {[%clk 0:02:42.9]} 9. Nd2 {[%clk 0:02:49.8]} 9... Nd6 {[%clk 0:02:41.3]}
10. Bxf5 {[%clk 0:02:45.6]} 10... Nxf5 {[%clk 0:02:42.2]} 11. g4 {[%clk
0:02:46.1]} 11... Nd6 {[%clk 0:02:39.8]} 12. h4 {[%clk 0:02:45.7]} 12... Be7
{[%clk 0:02:30.3]} 13. Ngf3 {[%clk 0:02:44.3]} 13... Qb6 {[%clk 0:02:26.2]} 14.
Rb1 {[%clk 0:02:39.2]} 14... O-O {[%clk 0:02:10]} 15. h5 {[%clk 0:02:38.2]}
15... Rae8 {[%clk 0:01:55.5]} 16. g5 {[%clk 0:02:37.6]} 16... Qd8 {[%clk
0:01:51.5]} 17. Kd1 {[%clk 0:02:30.5]} 17... Nf5 {[%clk 0:01:35.3]} 18. g6
{[%clk 0:02:30.1]} 18... fxg6 {[%clk 0:01:08.7]} 19. hxg6 {[%clk 0:02:27.6]}
19... h6 {[%clk 0:01:09.1]} 20. Qxe6+ {[%clk 0:02:25.4]} 20... Kh8 {[%clk
0:01:09.4]} 21. Qe2 {[%clk 0:01:34.4]} 21... Nfxd4 {[%clk 0:01:09.2]} 22. Nxd4
{[%clk 0:01:05]} 22... Nxd4 {[%clk 0:01:08.1]} 23. Qg4 {[%clk 0:01:04.5]} 23...
Nf5 {[%clk 0:01:05.9]} 24. Bxh6 {[%clk 0:01:03.8]} 24... gxh6 {[%clk 0:00:58.3]}
25. g7+ {[%clk 0:00:34.2]} 25... Nxg7 {[%clk 0:00:57.9]} 26. Rxh6+ {[%clk
0:00:34.3]} 26... Kg8 {[%clk 0:00:57.9]} 27. Qg6 {[%clk 0:00:21.7]} 27... Rf6
{[%clk 0:00:48.5]} 28. Qh7+ {[%clk 0:00:18.1]} 28... Kf7 {[%clk 0:00:48.9]} 29.
Rh2 {[%clk 0:00:14.7]} 29... Bf8 {[%clk 0:00:30.1]} 30. Kc2 {[%clk 0:00:12.3]}
30... d4 {[%clk 0:00:30]} 31. Ne4 {[%clk 0:00:09.6]} 31... d3+ {[%clk
0:00:20.4]} 32. Kd2 {[%clk 0:00:09.6]} 32... Rf5 {[%clk 0:00:20.8]} 33. Re1
{[%clk 0:00:10]} 33... Qd5 {[%clk 0:00:16.5]} 34. Qh4 {[%clk 0:00:05.7]} 34...
Qxa2 {[%clk 0:00:13.4]} 35. Ng5+ {[%clk 0:00:05.5]} 35... Rxg5 {[%clk
0:00:13.7]} 36. Rxe8 {[%clk 0:00:05.3]} 36... Qxb2+ {[%clk 0:00:13.4]} 37. Ke3
{[%clk 0:00:05.6]} 37... Qb6+ {[%clk 0:00:12.5]} 38. Kxd3 {[%clk 0:00:05.5]}
38... Qg6+ {[%clk 0:00:12.8]} 39. Kd2 {[%clk 0:00:05.4]} 39... Kxe8 {[%clk
0:00:12.7]} 40. Qa4+ {[%clk 0:00:04.7]} 40... Qc6 {[%clk 0:00:11.9]} 41. Qxa7
{[%clk 0:00:04.3]} 41... Rd5+ {[%clk 0:00:11.9]} 42. Kc2 {[%clk 0:00:04.7]}
42... Rc5 {[%clk 0:00:11.8]} 43. Qa1 {[%clk 0:00:02.6]} 43... Ne6 {[%clk
0:00:10.8]} 44. Qe1 {[%clk 0:00:02.2]} 44... Kd7 {[%clk 0:00:10]} 45. Rh7+
{[%clk 0:00:02.4]} 45... Be7 {[%clk 0:00:10.4]} 46. Qd1+ {[%clk 0:00:03]} 46...
Rd5 {[%clk 0:00:09.5]} 47. Qe1 {[%clk 0:00:02.3]} 47... b5 {[%clk 0:00:10]} 48.
Qe3 {[%clk 0:00:01.7]} 48... b4 {[%clk 0:00:10]} 49. Kb3 {[%clk 0:00:02]} 49...
bxc3 {[%clk 0:00:10]} 50. Qxc3 {[%clk 0:00:02.1]} 50... Rb5+ {[%clk 0:00:10.5]}
51. Kc2 {[%clk 0:00:01.9]} 51... Rc5 {[%clk 0:00:11]} 52. Rh3 {[%clk 0:00:02.2]}
52... Nd4+ {[%clk 0:00:10]} 53. Kb2 {[%clk 0:00:02]} 53... Rxc3 {[%clk
0:00:10.6]} 54. Rxc3 {[%clk 0:00:02.7]} 54... Qb5+ {[%clk 0:00:11.3]} 55. Ka2
{[%clk 0:00:03.1]} 55... Qa4+ {[%clk 0:00:11]} 56. Kb2 {[%clk 0:00:03.1]} 56...
Qb4+ {[%clk 0:00:11.5]} 57. Ka2 {[%clk 0:00:02.9]} 57... Qxc3 {[%clk 0:00:11.7]}
0-1

[Event "*** Titled Tuesday Blitz"]
[Site "Chess.com"]
[Date "2021.02.16"]
[Round "10"]
[White "hypert"]
[Black "Hercog"]
[Result "0-1"]
[WhiteElo "2487"]
[BlackElo "2373"]
[TimeControl "180+1"]
[EndTime "12:00:11 PST"]
[Termination "Hercog won by resignation"]

1. d4 {[%clk 0:03:00.9]} 1... Nf6 {[%clk 0:02:59.2]} 2. e3 {[%clk 0:03:01.3]}
2... g6 {[%clk 0:02:58.3]} 3. Nf3 {[%clk 0:02:58.3]} 3... Bg7 {[%clk 0:02:58.1]}
4. Be2 {[%clk 0:02:58.8]} 4... O-O {[%clk 0:02:57.3]} 5. O-O {[%clk 0:02:59.3]}
5... d5 {[%clk 0:02:57.3]} 6. c3 {[%clk 0:02:57.7]} 6... c5 {[%clk 0:02:48.9]}
7. dxc5 {[%clk 0:02:56.9]} 7... Ne4 {[%clk 0:02:48.6]} 8. c4 {[%clk 0:02:56.2]}
8... dxc4 {[%clk 0:02:43.7]} 9. Bxc4 {[%clk 0:02:51.9]} 9... Qxd1 {[%clk
0:02:33.4]} 10. Rxd1 {[%clk 0:02:52.8]} 10... Nc6 {[%clk 0:02:33]} 11. Nbd2
{[%clk 0:02:44.3]} 11... Nxc5 {[%clk 0:02:31.8]} 12. Rb1 {[%clk 0:02:41.7]}
12... Bf5 {[%clk 0:02:29.2]} 13. Ra1 {[%clk 0:02:37.9]} 13... Rfd8 {[%clk
0:02:27.1]} 14. Re1 {[%clk 0:02:21]} 14... Nd3 {[%clk 0:02:25.2]} 15. Bxd3
{[%clk 0:02:20]} 15... Bxd3 {[%clk 0:02:25]} 16. a3 {[%clk 0:02:09]} 16... Rac8
{[%clk 0:02:14.5]} 17. Nb3 {[%clk 0:01:58]} 17... e6 {[%clk 0:01:50.7]} 18. Nc5
{[%clk 0:01:17.1]} 18... b6 {[%clk 0:01:50.1]} 19. Nxd3 {[%clk 0:01:16.3]} 19...
Rxd3 {[%clk 0:01:49.9]} 20. Kf1 {[%clk 0:01:16.3]} 20... Na5 {[%clk 0:01:45.2]}
21. Rb1 {[%clk 0:01:08.3]} 21... Rc2 {[%clk 0:01:36.9]} 22. Re2 {[%clk
0:01:00.7]} 22... Rc8 {[%clk 0:01:10.9]} 23. b4 {[%clk 0:00:59.2]} 23... Nc4
{[%clk 0:01:03.1]} 24. Ne1 {[%clk 0:00:45.2]} 24... Rd1 {[%clk 0:01:00.4]} 25.
Rc2 {[%clk 0:00:20.5]} 25... Nxe3+ {[%clk 0:00:59]} 26. Bxe3 {[%clk 0:00:20.3]}
26... Rxe1+ {[%clk 0:00:55.6]} 27. Kxe1 {[%clk 0:00:19.6]} 27... Rxc2 {[%clk
0:00:55.2]} 28. Rc1 {[%clk 0:00:20.2]} 28... Rxc1+ {[%clk 0:00:53.8]} 29. Bxc1
{[%clk 0:00:21.1]} 29... b5 {[%clk 0:00:50.2]} 30. Ke2 {[%clk 0:00:20.8]} 30...
Kf8 {[%clk 0:00:49]} 31. Kd3 {[%clk 0:00:21.2]} 31... Ke7 {[%clk 0:00:49.2]} 32.
a4 {[%clk 0:00:21.1]} 32... a6 {[%clk 0:00:47.6]} 33. axb5 {[%clk 0:00:20.7]}
33... axb5 {[%clk 0:00:47.7]} 34. Be3 {[%clk 0:00:21.6]} 34... Kd6 {[%clk
0:00:47.2]} 35. Bc5+ {[%clk 0:00:21.7]} 35... Kd5 {[%clk 0:00:47.1]} 36. f3
{[%clk 0:00:22.3]} 36... e5 {[%clk 0:00:46.4]} 37. g4 {[%clk 0:00:22.8]} 37...
f5 {[%clk 0:00:46.2]} 38. gxf5 {[%clk 0:00:22.3]} 38... gxf5 {[%clk 0:00:46.2]}
39. h3 {[%clk 0:00:22.9]} 39... e4+ {[%clk 0:00:46.2]} 40. fxe4+ {[%clk
0:00:23.1]} 40... fxe4+ {[%clk 0:00:46.2]} 41. Ke3 {[%clk 0:00:23.7]} 41... Bh6+
{[%clk 0:00:44.5]} 42. Ke2 {[%clk 0:00:24.1]} 42... Kc4 {[%clk 0:00:44.3]} 43.
h4 {[%clk 0:00:22.8]} 43... Bf4 {[%clk 0:00:43]} 44. h5 {[%clk 0:00:23]} 44...
Bc1 {[%clk 0:00:41.1]} 45. Bf8 {[%clk 0:00:20.4]} 45... Ba3 {[%clk 0:00:40]} 46.
Ke3 {[%clk 0:00:20.6]} 46... Bxb4 {[%clk 0:00:40.1]} 47. Bg7 {[%clk 0:00:20.7]}
47... Kd5 {[%clk 0:00:39.7]} 48. h6 {[%clk 0:00:18.8]} 48... Ba3 {[%clk
0:00:39.2]} 49. Kd2 {[%clk 0:00:17.9]} 49... Bc5 {[%clk 0:00:32.1]} 50. Kc3
{[%clk 0:00:16.8]} 50... b4+ {[%clk 0:00:27]} 51. Kd2 {[%clk 0:00:17.2]} 51...
Bd4 {[%clk 0:00:26.6]} 52. Bf8 {[%clk 0:00:16.3]} 52... b3 {[%clk 0:00:26.5]}
53. Ba3 {[%clk 0:00:17.2]} 53... b2 {[%clk 0:00:25.3]} 54. Kc2 {[%clk
0:00:16.7]} 54... e3 {[%clk 0:00:25.3]} 55. Bb4 {[%clk 0:00:15.7]} 55... Ke4
{[%clk 0:00:24.8]} 56. Be1 {[%clk 0:00:12]} 56... Kf3 {[%clk 0:00:24.5]} 57. Bb4
{[%clk 0:00:08.2]} 57... Ke2 {[%clk 0:00:22.1]} 58. Bc3 {[%clk 0:00:09.1]} 58...
Bxc3 {[%clk 0:00:21.5]} 0-1